lending/lending_fUSD_20241212
["ID","MTS","AMOUNT","RATE_DAILY","PERIOD"]
[345100900,1734017449721,-954.88,0.000228,31]
[345100901,1734017449731,-954.88,0.000228,31]
[345100902,1734017449741,-954.88,0.000228,31]
[345100903,1734017449751,-954.88,0.000228,31]
[345100904,1734017449762,-954.88,0.000228,31]
[345100905,1734017449771,-954.88,0.000228,31]
[345100906,1734017449782,-954.88,0.000228,31]
[345100907,1734017449791,-954.88,0.000228,31]
[345100908,1734017449801,-954.88,0.000228,31]
[345100909,1734017449811,-954.88,0.000228,31]
[345100910,1734017449820,-954.88,0.000228,31]
[345100911,1734017449829,-954.88,0.000228,31]
[345100912,1734017449839,-954.88,0.000228,31]
[345100913,1734017449848,-954.88,0.000228,31]
[345100914,1734017449858,-954.88,0.000228,31]
[345100915,1734017449868,-954.88,0.000228,31]
[345100916,1734017449877,-954.88,0.000228,31]
[345100917,1734017449886,-954.88,0.000228,31]
[345100918,1734017449896,-954.88,0.000228,31]
[345100919,1734017449906,-954.88,0.000228,31]
[345100920,1734017449916,-500.0,0.00022823,2]
[345100921,1734017449927,-500.0,0.00022823,2]
[345100922,1734017449937,-834.58,0.00022823,2]
[345100923,1734017449946,-500.0,0.00022823,2]
[345100924,1734017449956,-500.0,0.00022823,2]
[345100925,1734017449966,-2195.24,0.00022823,2]
[345100926,1734017449976,-500.0,0.00022823,2]
[345100927,1734017449986,-594.87,0.00022823,2]
[345100928,1734017449995,-500.0,0.00022823,2]
[345100929,1734017450005,-503.88,0.00022823,2]
[345100930,1734017450015,-500.0,0.00022823,2]
[345100931,1734017450024,-653.7,0.00022823,2]
[345100932,1734017450034,-581.82,0.00022823,2]
[345100933,1734017450043,-610.48,0.00022823,2]
[345100934,1734017450053,-500.0,0.00022823,2]
[345100935,1734017450063,-4903.49,0.00022886,2]
[345100936,1734017450073,-500.0,0.00022887,2]
[345100937,1734017450082,-602.88048232,0.00022887,2]
[345100938,1734017450092,-500.0,0.00022887,2]
[345100939,1734017450102,-500.0,0.00022887,2]
[345100940,1734017450111,-1000.0,0.00022896,2]
[345100941,1734017450120,-1963.05202227,0.00022908,7]
[345100942,1734017450130,-500.0,0.00023,2]
[345100943,1734017450140,-500.0,0.00023,2]
[345100944,1734017450150,-500.0,0.00023,2]
[345100945,1734017450159,-5063.47456111,0.00023,2]
[345100946,1734017450175,-51000.0,0.00023,10]
[345100947,1734017450184,-500.0,0.00023,2]
[345100948,1734017450194,-500.0,0.00023,2]
[345100949,1734017450204,-500.0,0.00023,2]
[345100950,1734017450213,-10544.80269368,0.00023,10]
[345100951,1734017450223,-100000.0,0.00023,120]
[345100952,1734017450232,-200.0,0.00023,2]
[345100953,1734017450242,-2110.0,0.00023,2]
[345100954,1734017450255,-700.0,0.00023,2]
[345100955,1734017450265,-151.0,0.00023,7]
[345100956,1734017450274,-151.0,0.00023,7]
[345100957,1734017450284,-196.320238,0.00023,7]
[345100958,1734017450295,-196.320238,0.00023,7]
[345100959,1734017450304,-158.139776,0.00023,7]
[345100960,1734017450313,-158.139776,0.00023,7]
[345100961,1734017450323,-176.0,0.00023,2]
[345100962,1734017450333,-267.13695007,0.0002301,2]
[345100963,1734017450342,-534.0,0.00023014,2]
[345100964,1734017450351,-500.0,0.00023061,2]
[345100965,1734017450360,-572.83,0.00023061,2]
[345100966,1734017450370,-505.75,0.00023061,2]
[345100967,1734017450380,-500.0,0.00023061,2]
[345100968,1734017450390,-1001.23,0.00023061,2]
[345100969,1734017450400,-1105.86,0.00023061,2]
[345100970,1734017450409,-869.7,0.00023061,2]
[345100971,1734017450424,-500.0,0.00023061,2]
[345100972,1734017450434,-523.73645135,0.00023061,2]
[345100973,1734017450444,-296.4035143,0.00023061,2]
[345100974,1734017450454,-605.31,0.00023061,2]
[345100975,1734017450463,-500.0,0.00023061,2]
[345100976,1734017450474,-2083.63,0.00023061,2]
[345100977,1734017450483,-866.62,0.00023061,2]
[345100978,1734017450493,-500.0,0.00023061,2]
[345100979,1734017450503,-500.0,0.00023061,2]
[345100980,1734017450515,-1271.41593,0.00023088,7]
[345100981,1734017450525,-500.0,0.00023097,2]
[345100982,1734017450535,-500.0,0.00023097,2]
[345100983,1734017450544,-834.58,0.00023097,2]
[345100984,1734017450554,-500.0,0.00023097,2]
[345100985,1734017450564,-566.79197006,0.00023097,2]
[345100986,1734017450573,-2195.24,0.00023097,2]
[345100987,1734017450583,-500.0,0.00023097,2]
[345100988,1734017450593,-594.87,0.00023097,2]
[345100989,1734017450603,-361.3191303,0.00023097,2]
[345100990,1734017450614,-503.88,0.00023097,2]
[345100991,1734017450623,-500.0,0.00023097,2]
[345100992,1734017450632,-653.7,0.00023097,2]
[345100993,1734017450642,-581.82,0.00023097,2]
[345100994,1734017450652,-610.48,0.00023097,2]
[345100995,1734017450662,-500.0,0.00023097,2]
[345100996,1734017450679,-1630.86543538,0.00023114,2]
[345100997,1734017450689,-1963.05202227,0.00023157,7]
[345100998,1734017450699,-4903.49,0.0002316,2]
[345100999,1734017450709,-871.3,0.00023161,2]
[345101000,1734017450718,-500.0,0.00023161,2]
[345101001,1734017450729,-320.20571193,0.00023161,2]
[345101002,1734017450739,-500.0,0.00023161,2]
[345101003,1734017450749,-703.70609141,0.00023185,2]
[345101004,1734017450759,-49811.85523684,0.000232,2]
[345101005,1734017450769,-567.423001,0.000232,11]
[345101006,1734017450779,-567.14035783,0.0002322,2]
[345101007,1734017450789,-1500.0,0.00023287,2]
[345101008,1734017450798,-733.99104664,0.00023287,2]
[345101009,1734017450808,-534.0,0.00023288,2]
[345101010,1734017450818,-1271.41593,0.00023288,7]
[345101011,1734017450828,-300.0,0.000233,2]
[345101012,1734017450838,-500.0,0.00023335,2]
[345101013,1734017450848,-572.83,0.00023335,2]
[345101014,1734017450858,-505.75,0.00023335,2]
[345101015,1734017450869,-500.0,0.00023335,2]
[345101016,1734017450880,-1001.23,0.00023335,2]
[345101017,1734017450891,-1105.86,0.00023335,2]
[345101018,1734017450901,-869.7,0.00023335,2]
[345101019,1734017450911,-500.84,0.00023335,2]
[345101020,1734017450924,-605.31,0.00023335,2]
[345101021,1734017450934,-500.0,0.00023335,2]
[345101022,1734017450943,-2083.63,0.00023335,2]
[345101023,1734017450954,-866.62,0.00023335,2]
[345101024,1734017450964,-468.1014941,0.00023335,2]
[345101025,1734017450973,-500.0,0.00023335,2]
[345101026,1734017450983,-500.0,0.00023371,2]
[345101027,1734017450993,-500.0,0.00023371,2]
[345101028,1734017451003,-834.58,0.00023371,2]
[345101029,1734017451013,-500.0,0.00023371,2]
[345101030,1734017451023,-2195.24,0.00023371,2]
[345101031,1734017451033,-500.0,0.00023371,2]
[345101032,1734017451089,-594.87,0.00023371,2]
[345101033,1734017451100,-503.88,0.00023371,2]
[345101034,1734017451110,-500.0,0.00023371,2]
[345101035,1734017451119,-653.7,0.00023371,2]
[345101036,1734017451129,-581.82,0.00023371,2]
[345101037,1734017451139,-610.48,0.00023371,2]
[345101038,1734017451148,-500.0,0.00023371,2]
[345101039,1734017451158,-503.566873,0.00023406,120]
[345101040,1734017451169,-2000.0,0.00023406,120]
[345101041,1734017451179,-502.589057,0.00023406,120]
[345101042,1734017451188,-202.088874,0.00023406,120]
[345101043,1734017451199,-1963.05202227,0.00023406,7]
[345101044,1734017451209,-4903.49,0.00023434,2]
[345101045,1734017451219,-500.0,0.00023435,2]
[345101046,1734017451229,-500.0,0.00023435,2]
[345101047,1734017451239,-1630.86543538,0.00023471,2]
[345101048,1734017451249,-497.88,0.00023479,2]
[345101049,1734017451262,-1271.41593,0.00023488,7]
[345101050,1734017451272,-387.4,0.0002349,2]
[345101051,1734017451282,-2110.0,0.000235,2]
[345101052,1734017451291,-152.0,0.00023545,4]
[345101053,1734017451303,-291.05370942,0.00023545,5]
[345101054,1734017451313,-534.0,0.00023562,2]
[345101055,1734017451322,-500.0,0.00023609,2]
[345101056,1734017451332,-572.83,0.00023609,2]
[345101057,1734017451342,-505.75,0.00023609,2]
[345101058,1734017451352,-500.0,0.00023609,2]
[345101059,1734017451361,-1001.23,0.00023609,2]
[345101060,1734017451371,-1105.86,0.00023609,2]
[345101061,1734017451380,-869.7,0.00023609,2]
[345101062,1734017451390,-605.31,0.00023609,2]
[345101063,1734017451399,-500.0,0.00023609,2]
[345101064,1734017451408,-2083.63,0.00023609,2]
[345101065,1734017451418,-866.62,0.00023609,2]
[345101066,1734017451428,-460.76506278,0.00023609,2]
[345101067,1734017451437,-160.36706827,0.0002361,2]
[345101068,1734017451446,-716879.25739403,0.0002361,7]
[345101069,1734017451455,-154.025471,0.0002361,7]
[345101070,1734017451464,-151.0,0.0002361,7]
[345101071,1734017451473,-196.320238,0.0002361,7]
[345101072,1734017451482,-196.320238,0.0002361,7]
[345101073,1734017451492,-158.139776,0.0002361,7]
[345101074,1734017451502,-158.139776,0.0002361,7]
[345101075,1734017451512,-151.0,0.0002361,7]
[345101076,1734017451522,-151.0,0.0002361,7]
[345101077,1734017451531,-151.0,0.0002361,7]
[345101078,1734017451541,-151.0,0.0002361,7]
[345101079,1734017451550,-512.841004,0.0002361,7]
[345101080,1734017451560,-512.841004,0.0002361,7]
[345101081,1734017451569,-500.0,0.00023645,2]
[345101082,1734017451579,-436.0402797,0.00023645,2]
[345101083,1734017451588,-834.58,0.00023645,2]
[345101084,1734017451598,-500.0,0.00023645,2]
[345101085,1734017451608,-2195.24,0.00023645,2]
[345101086,1734017451617,-500.0,0.00023645,2]
[345101087,1734017451626,-594.87,0.00023645,2]
[345101088,1734017451635,-503.88,0.00023645,2]
[345101089,1734017451644,-500.0,0.00023645,2]
[345101090,1734017451654,-653.7,0.00023645,2]
[345101091,1734017451663,-581.82,0.00023645,2]
[345101092,1734017451675,-610.48,0.00023645,2]
[345101093,1734017451684,-500.0,0.00023645,2]
[345101094,1734017451693,-1963.05202227,0.00023655,7]
[345101095,1734017451703,-689.14,0.00023657,30]
[345101096,1734017451713,-1271.41593,0.00023688,7]
[345101097,1734017451722,-4903.49,0.00023708,2]
[345101098,1734017451731,-710.63,0.00023708,2]
[345101099,1734017451741,-500.0,0.00023709,2]
[345101100,1734017451750,-500.0,0.00023709,2]
[345101101,1734017451759,-887.59,0.00023795,2]
[345101102,1734017451769,-2000.0,0.0002382,2]
[345101103,1734017451778,-36005.0022175,0.00023824,2]
[345101104,1734017451787,-1630.86543538,0.00023829,2]
[345101105,1734017451797,-534.0,0.00023836,2]
[345101106,1734017451806,-500.0,0.00023883,2]
[345101107,1734017451815,-572.83,0.00023883,2]
[345101108,1734017451824,-505.75,0.00023883,2]
[345101109,1734017451834,-500.0,0.00023883,2]
[345101110,1734017451843,-1001.23,0.00023883,2]
[345101111,1734017451853,-1105.86,0.00023883,2]
[345101112,1734017451863,-869.7,0.00023883,2]
[345101113,1734017451872,-605.31,0.00023883,2]
[345101114,1734017451881,-500.0,0.00023883,2]
[345101115,1734017451891,-2083.63,0.00023883,2]
[345101116,1734017451900,-866.62,0.00023883,2]
[345101117,1734017451909,-1963.05202227,0.00023904,7]
[345101118,1734017451920,-500.0,0.00023919,2]
[345101119,1734017451930,-834.58,0.00023919,2]
[345101120,1734017451939,-500.0,0.00023919,2]
[345101121,1734017451949,-2195.24,0.00023919,2]
[345101122,1734017451958,-500.0,0.00023919,2]
[345101123,1734017451967,-594.87,0.00023919,2]
[345101124,1734017451976,-503.88,0.00023919,2]
[345101125,1734017451985,-500.0,0.00023919,2]
[345101126,1734017451994,-653.7,0.00023919,2]
[345101127,1734017452004,-581.82,0.00023919,2]
[345101128,1734017452013,-610.48,0.00023919,2]
[345101129,1734017452023,-500.0,0.00023919,2]
[345101130,1734017452032,-335304.0,0.00023922,2]
[345101131,1734017452041,-150.0,0.00023947,120]
[345101132,1734017452050,-4903.49,0.00023982,2]
[345101133,1734017452060,-500.0,0.00023983,2]
[345101134,1734017452071,-158.67990136,0.00023983,2]
[345101135,1734017452081,-974.49075715,0.00024,2]
[345101136,1734017452090,-1893.0,0.00024,2]
[345101137,1734017452100,-1000.0,0.00024,120]
[345101138,1734017452109,-7763.72327123,0.00024,2]
[345101139,1734017452118,-9466.5712959,0.00024,120]
[345101140,1734017452127,-80029.77631385,0.00024,4]
[345101141,1734017452136,-80000.0,0.00024,3]
[345101142,1734017452145,-2110.0,0.00024,2]
[345101143,1734017452155,-5013.34080577,0.00024,30]
[345101144,1734017452164,-196.320238,0.00024,7]
[345101145,1734017452177,-196.320238,0.00024,7]
[345101146,1734017452186,-158.139776,0.00024,7]
[345101147,1734017452195,-158.139776,0.00024,7]
[345101148,1734017452204,-777.57907235,0.0002402,2]
[345101149,1734017452214,-7371.3,0.00024032,2]
[345101150,1734017452223,-4061.57,0.00024037,2]
[345101151,1734017452233,-364.17,0.00024055,2]
[345101152,1734017452242,-150.0,0.00024068,120]
[345101153,1734017452252,-25000.0,0.0002407,2]
[345101154,1734017452266,-2500.0,0.00024071,2]
[345101155,1734017452275,-5000.0,0.00024073,2]
[345101156,1734017452285,-151.0,0.000241,7]
[345101157,1734017452295,-151.0,0.000241,7]
[345101158,1734017452304,-1854.90348439,0.000241,2]
[345101159,1734017452313,-151.0,0.000241,7]
[345101160,1734017452323,-512.841004,0.000241,7]
[345101161,1734017452333,-512.841004,0.000241,7]
[345101162,1734017452342,-59157.94040373,0.000241,4]
[345101163,1734017452352,-462.79978727,0.00024109,8]
[345101164,1734017452362,-534.0,0.0002411,2]
[345101165,1734017452371,-1963.05202227,0.00024153,7]
[345101166,1734017452380,-500.0,0.00024157,2]
[345101167,1734017452389,-572.83,0.00024157,2]
[345101168,1734017452399,-505.75,0.00024157,2]
[345101169,1734017452410,-417.77006739,0.00024157,2]
[345101170,1734017452422,-1001.23,0.00024157,2]
[345101171,1734017452432,-1105.86,0.00024157,2]
[345101172,1734017452442,-869.7,0.00024157,2]
[345101173,1734017452452,-605.31,0.00024157,2]
[345101174,1734017452461,-500.0,0.00024157,2]
[345101175,1734017452471,-2083.63,0.00024157,2]
[345101176,1734017452480,-866.62,0.00024157,2]
[345101177,1734017452490,-5000.0,0.00024159,2]
[345101178,1734017452499,-176.0,0.00024164,2]
[345101179,1734017452509,-5000.0,0.00024172,2]
[345101180,1734017452519,-25000.0,0.00024183,2]
[345101181,1734017452528,-150.0,0.00024183,120]
[345101182,1734017452538,-1630.86543538,0.00024186,2]
[345101183,1734017452547,-500.0,0.00024193,2]
[345101184,1734017452558,-834.58,0.00024193,2]
[345101185,1734017452567,-500.0,0.00024193,2]
[345101186,1734017452577,-2195.24,0.00024193,2]
[345101187,1734017452587,-595.27,0.00024193,2]
[345101188,1734017452597,-594.87,0.00024193,2]
[345101189,1734017452606,-503.88,0.00024193,2]
[345101190,1734017452615,-500.0,0.00024193,2]
[345101191,1734017452625,-653.7,0.00024193,2]
[345101192,1734017452634,-581.82,0.00024193,2]
[345101193,1734017452644,-610.48,0.00024193,2]
[345101194,1734017452654,-500.0,0.00024193,2]
[345101195,1734017452663,-4260.21,0.00024199,2]
[345101196,1734017452676,-402.69303,0.0002421,2]
[345101197,1734017452686,-3528.56357138,0.0002421,2]
[345101198,1734017452695,-31514.73970355,0.00024223,2]
[345101199,1734017452705,-5000.0,0.00024232,2]
[345101200,1734017452715,-4903.49,0.00024256,2]
[345101201,1734017452724,-500.0,0.00024257,2]
[345101202,1734017452735,-25000.0,0.00024271,2]
[345101203,1734017452744,-243.58594625,0.00024297,2]
[345101204,1734017452754,-500.0,0.000243,2]
[345101205,1734017452764,-500.0,0.000243,2]
[345101206,1734017452774,-745.07796805,0.000243,2]
[345101207,1734017452784,-500.0,0.000243,2]
[345101208,1734017452794,-500.0,0.000243,2]
[345101209,1734017452803,-500.0,0.000243,2]
[345101210,1734017452813,-507.17055256,0.000243,2]
[345101211,1734017452822,-500.0,0.000243,2]
[345101212,1734017452831,-500.0,0.000243,2]
[345101213,1734017452840,-500.0,0.000243,2]
[345101214,1734017452850,-500.0,0.000243,2]
[345101215,1734017452859,-935.4007903,0.000243,2]
[345101216,1734017452869,-1100.0,0.000243,2]
[345101217,1734017452879,-500.0,0.000243,2]
[345101218,1734017452888,-1100.0,0.000243,2]
[345101219,1734017452898,-500.0,0.000243,2]
[345101220,1734017452908,-1100.0,0.000243,2]
[345101221,1734017452921,-500.0,0.000243,2]
[345101222,1734017452935,-1100.0,0.000243,2]
[345101223,1734017452945,-500.0,0.000243,2]
[345101224,1734017452955,-1100.0,0.000243,2]
[345101225,1734017452965,-500.0,0.000243,2]
[345101226,1734017452975,-1100.0,0.000243,2]
[345101227,1734017452984,-500.0,0.000243,2]
[345101228,1734017452994,-700.0,0.000243,2]
[345101229,1734017453005,-2400.0,0.000243,2]
[345101230,1734017453015,-1100.0,0.000243,2]
[345101231,1734017453024,-500.0,0.000243,2]
[345101232,1734017453034,-700.0,0.000243,2]
[345101233,1734017453044,-2400.0,0.000243,2]
[345101234,1734017453053,-500.0,0.000243,2]
[345101235,1734017453063,-1100.0,0.000243,2]
[345101236,1734017453074,-500.0,0.000243,2]
[345101237,1734017453084,-700.0,0.000243,2]
[345101238,1734017453094,-2400.0,0.000243,2]
[345101239,1734017453103,-500.0,0.000243,2]
[345101240,1734017453114,-1100.0,0.000243,2]
[345101241,1734017453124,-500.0,0.000243,2]
[345101242,1734017453134,-700.0,0.000243,2]
[345101243,1734017453145,-2400.0,0.000243,2]
[345101244,1734017453155,-500.0,0.000243,2]
[345101245,1734017453164,-1100.0,0.000243,2]
[345101246,1734017453177,-500.0,0.000243,2]
[345101247,1734017453187,-700.0,0.000243,2]
[345101248,1734017453197,-2400.0,0.000243,2]
[345101249,1734017453207,-500.0,0.000243,2]
[345101250,1734017453217,-1100.0,0.000243,2]
[345101251,1734017453227,-2400.0,0.000243,2]
[345101252,1734017453237,-700.0,0.000243,2]
[345101253,1734017453247,-500.0,0.000243,2]
[345101254,1734017453261,-1100.0,0.000243,2]
[345101255,1734017453271,-500.0,0.000243,2]
[345101256,1734017453281,-700.0,0.000243,2]
[345101257,1734017453291,-2400.0,0.000243,2]
[345101258,1734017453303,-500.0,0.000243,2]
[345101259,1734017453314,-500.0,0.000243,2]
[345101260,1734017453324,-1100.0,0.000243,2]
[345101261,1734017453334,-500.0,0.000243,2]
[345101262,1734017453345,-700.0,0.000243,2]
[345101263,1734017453355,-2400.0,0.000243,2]
[345101264,1734017453364,-699.57068864,0.000243,2]
[345101265,1734017453374,-500.0,0.000243,2]
[345101266,1734017453384,-1630.36714812,0.000243,2]
[345101267,1734017453394,-500.0,0.000243,2]
[345101268,1734017453405,-700.0,0.000243,2]
[345101269,1734017453414,-2400.0,0.000243,2]
[345101270,1734017453427,-500.0,0.000243,2]
[345101271,1734017453437,-500.0,0.000243,2]
[345101272,1734017453446,-2400.0,0.000243,2]
[345101273,1734017453456,-500.0,0.000243,2]
[345101274,1734017453466,-700.0,0.000243,2]
[345101275,1734017453476,-500.0,0.000243,2]
[345101276,1734017453486,-902.43775066,0.000243,2]
[345101277,1734017453497,-700.0,0.000243,2]
[345101278,1734017453506,-500.0,0.000243,2]
[345101279,1734017453516,-2400.0,0.000243,2]
[345101280,1734017453526,-500.0,0.000243,2]
[345101281,1734017453536,-2400.0,0.000243,2]
[345101282,1734017453546,-700.0,0.000243,2]
[345101283,1734017453556,-2400.0,0.000243,2]
[345101284,1734017453566,-700.0,0.000243,2]
[345101285,1734017453576,-500.0,0.000243,2]
[345101286,1734017453586,-2897.50942926,0.000243,2]
[345101287,1734017453596,-747.57922137,0.000243,2]
[345101288,1734017453605,-672.57082314,0.000243,2]
[345101289,1734017453615,-500.0,0.000243,2]
[345101290,1734017453625,-641.22307171,0.000243,2]
[345101291,1734017453635,-500.0,0.000243,2]
[345101292,1734017453645,-500.0,0.000243,2]
[345101293,1734017453655,-500.0,0.000243,2]
[345101294,1734017453665,-500.0,0.000243,2]
[345101295,1734017453675,-500.0,0.000243,2]
[345101296,1734017453685,-955.29128373,0.000243,2]
[345101297,1734017453695,-500.0,0.000243,2]
[345101298,1734017453705,-1400.0,0.000243,2]
[345101299,1734017453715,-555.6069893,0.000243,2]
[345101300,1734017453725,-500.0,0.000243,2]
[345101301,1734017453734,-500.0,0.000243,2]
[345101302,1734017453744,-1400.0,0.000243,2]
[345101303,1734017453754,-500.0,0.000243,2]
[345101304,1734017453764,-1400.0,0.000243,2]
[345101305,1734017453774,-500.0,0.000243,2]
[345101306,1734017453784,-1400.0,0.000243,2]
[345101307,1734017453794,-1400.0,0.000243,2]
[345101308,1734017453804,-500.0,0.000243,2]
[345101309,1734017453814,-1400.0,0.000243,2]
[345101310,1734017453824,-615.90810083,0.000243,2]
[345101311,1734017453833,-1400.0,0.000243,2]
[345101312,1734017453843,-1400.0,0.000243,2]
[345101313,1734017453853,-1400.0,0.000243,2]
[345101314,1734017453862,-1400.0,0.000243,2]
[345101315,1734017453872,-1400.0,0.000243,2]
[345101316,1734017453882,-1400.0,0.000243,2]
[345101317,1734017453891,-1400.0,0.000243,2]
[345101318,1734017453902,-1400.0,0.000243,2]
[345101319,1734017453912,-1400.0,0.000243,2]
[345101320,1734017453924,-1400.0,0.000243,2]
[345101321,1734017453934,-1400.0,0.000243,2]
[345101322,1734017453944,-1400.0,0.000243,2]
[345101323,1734017453954,-1400.0,0.000243,2]
[345101324,1734017453964,-1400.0,0.000243,2]
[345101325,1734017453974,-1400.0,0.000243,2]
[345101326,1734017453983,-1531.0242345,0.000243,2]
[345101327,1734017453993,-1400.0,0.000243,2]
[345101328,1734017454003,-1400.0,0.000243,2]
[345101329,1734017454013,-1400.0,0.000243,2]
[345101330,1734017454023,-1400.0,0.000243,2]
[345101331,1734017454033,-1400.0,0.000243,2]
[345101332,1734017454043,-1848.01001531,0.000243,2]
[345101333,1734017454052,-5000.0,0.00024325,2]
[345101334,1734017454062,-4260.36,0.00024326,2]
[345101335,1734017454072,-5000.0,0.00024345,2]
[345101336,1734017454082,-5000.0,0.00024354,2]
[345101337,1734017454091,-1894.67,0.00024368,2]
[345101338,1734017454102,-5000.0,0.00024372,2]
[345101339,1734017454112,-823.0,0.00024372,2]
[345101340,1734017454122,-5000.0,0.00024379,2]
[345101341,1734017454132,-534.0,0.00024384,2]
[345101342,1734017454142,-5000.0,0.00024395,2]
[345101343,1734017454152,-841846.05341328,0.000244,14]
[345101344,1734017454354,-121224.24,0.000244,14]
[345101345,1734017454368,-732.80843254,0.000244,14]
[345101346,1734017454545,-5750.51430071,0.000244,14]
[345101347,1734017454557,-2321.18009929,0.000244,14]
[345101348,1734017454568,-9582.5805,0.000244,14]
[345101349,1734017454617,-77643.36607444,0.000244,14]
[345101350,1734017454629,-504.15,0.000244,14]
[345101351,1734017454641,-302.71028998,0.000244,14]
[345101352,1734017454672,-167.86451008,0.000199,2]
[345101353,1734017454682,-1852.33548992,0.00019997,2]
[345101354,1734017454693,-450.08109918,0.00019997,2]
[345101355,1734017454705,-2737.08414343,0.00019997,2]
[345101356,1734017454795,-95953.43585821,0.00019997,2]
[345101357,1734017454806,-526.86,0.00019997,2]
[345101358,1734017454818,-547.127,0.00019997,2]
[345101359,1734017454829,-606.78,0.00019997,2]
[345101360,1734017454840,-16432.73624498,0.00019997,2]
[345101361,1734017454883,-417.67680952,0.00019997,2]
[345101362,1734017455212,-238914.96938497,0.00019997,2]
[345101363,1734017455283,-13177.75249721,0.00019997,2]
[345101364,1734017455296,-4899.75,0.00019997,2]
[345101365,1734017455308,-5639.1,0.00019997,2]
[345101366,1734017455320,-20030.0,0.00019997,2]
[345101367,1734017455333,-64788.23792579,0.00019997,2]
[345101368,1734017455407,-2303.56242096,0.00019997,2]
[345101369,1734017455419,-39014.999969,0.00019997,2]
[345101370,1734017455430,-24107.54106792,0.00019997,2]
[345101371,1734017455442,-379.03818289,0.00019997,2]
[345101372,1734017455454,-2372.28142575,0.00019997,2]
[345101373,1734017455604,-488.88,0.00019997,2]
[345101374,1734017455615,-1681.80442843,0.00019997,2]
[345101378,1734018302962,2000.0,0.00017787,120]
[345101381,1734018446216,-243.48755639,0.00013,2]
[345101387,1734018631842,-206.51244361,0.00013,2]
[345101388,1734018631853,-500.0,0.00015,2]
[345101389,1734018631864,-150.0,0.00015862,2]
[345101390,1734018631874,-678.77,0.000161,2]
[345101391,1734018631885,-2496.97390641,0.000163,2]
[345101392,1734018631967,-2829.02609359,0.000163,2]
[345101393,1734018631978,-879.08188688,0.00016352,2]
[345101394,1734018631989,-879.08188688,0.00016361,2]
[345101395,1734018632000,-879.08188688,0.00016363,2]
[345101396,1734018632011,-879.08188688,0.00016368,2]
[345101397,1734018632022,-879.08188688,0.00016379,2]
[345101398,1734018632032,-879.08188688,0.00016382,2]
[345101399,1734018632042,-300.0,0.00016857,2]
[345101400,1734018632053,-405.0,0.00016858,2]
[345101401,1734018632064,-1003.65,0.00016858,2]
[345101402,1734018632074,-999.2,0.00016858,2]
[345101403,1734018632085,-1010.66,0.00016858,2]
[345101404,1734018632095,-1011.16,0.00016858,2]
[345101405,1734018632106,-1010.25,0.00016858,2]
[345101406,1734018632117,-997.03,0.00016858,2]
[345101407,1734018632127,-1018.63,0.00016858,2]
[345101408,1734018632137,-9980.13,0.00016858,2]
[345101409,1734018632147,-1014.92,0.00016859,2]